bitfinex/quotes_SOLUSD_20250424
["timestamp","ask_amount","ask_price","bid_price","bid_amount"]
[1745488849696,9.17392421,146.87,146.85,0.063]
[1745488856786,12.15288727,146.88,146.85,0.063]
[1745488857681,9.17392421,146.87,146.85,0.063]
[1745488859287,10.53458727,146.86,146.85,0.063]
[1745488860566,12.15288727,146.88,146.85,0.063]
[1745488861568,9.17392421,146.87,146.85,0.063]
[1745488862694,10.53458727,146.86,146.85,0.063]
[1745488863971,1.36066306,146.86,146.85,0.063]
[1745488864272,9.17392421,146.87,146.85,0.063]
[1745488865574,10.53458727,146.88,146.85,0.063]
[1745488865772,1.36066306,146.91,146.85,0.063]
[1745488865969,6.0462,146.96,146.88,9.17392421]
[1745488866292,35.17392421,146.93,146.88,9.17392421]
[1745488866600,10.53458727,146.92,146.87,9.17392421]
[1745488867401,1.36066306,146.92,146.87,9.17392421]
[1745488867570,10.53458727,146.92,146.87,9.17392421]
[1745488868490,10.53458727,146.92,146.88,9.17392421]
[1745488868789,10.53458727,146.92,146.87,9.17392421]
[1745488869681,10.53458727,146.92,146.88,9.17392421]
[1745488870498,9.17392421,146.92,146.88,9.17392421]
[1745488870676,9.17392421,146.94,146.89,9.17392421]
[1745488870877,1.36066306,146.95,146.91,9.17392421]
[1745488871082,10.53458727,146.95,146.91,9.17392421]
[1745488871605,10.53458727,146.95,146.9,9.17392421]
[1745488871910,1.36066306,146.95,146.91,9.17392421]
[1745488872104,1.39066306,146.97,146.92,9.17392421]
[1745488872271,1.39066306,146.97,146.89,14.46]
[1745488872272,36.56458727,146.97,146.93,9.17392421]
[1745488872472,36.56458727,146.97,146.92,9.17392421]
[1745488873594,27.39066306,146.97,146.92,9.17392421]
[1745488873800,36.56458727,146.97,146.92,9.17392421]
[1745488874102,9.17392421,146.96,146.92,9.17392421]
[1745488874399,9.17392421,146.96,146.91,9.17392421]
[1745488876812,9.17392421,146.96,146.92,9.17392421]
[1745488877892,36.56458727,146.97,146.92,9.17392421]
[1745488878412,36.56458727,146.97,146.93,9.17392421]
[1745488878582,36.56458727,146.97,146.92,9.17392421]
[1745488880317,9.17392421,146.96,146.92,9.17392421]
[1745488880608,9.17392421,146.96,146.91,9.17392421]
[1745488882506,27.39066306,146.97,146.92,9.17392421]
[1745488882693,9.17392421,146.96,146.92,9.17392421]
[1745488885404,27.39066306,146.97,146.89,14.46]
[1745488885405,9.17392421,146.95,146.91,9.17392421]
[1745488888015,9.17392421,146.96,146.91,9.17392421]
[1745488888215,27.39066306,146.97,146.89,14.46]
[1745488888520,9.17392421,146.96,146.92,9.17392421]
[1745488889397,27.39066306,146.97,146.92,9.17392421]
[1745488889711,9.17392421,146.96,146.92,9.17392421]
[1745488890112,36.56458727,146.97,146.92,9.17392421]
[1745488890300,26.03,146.97,146.93,9.17392421]
[1745488890609,0.03,146.97,146.95,9.17392421]
[1745488891817,0.03,146.97,146.94,9.17392421]
[1745488892022,9.17392421,146.96,146.91,9.17392421]
[1745488892319,9.17392421,146.95,146.91,9.17392421]
[1745488892524,9.17392421,146.95,146.9,27.5756]
[1745488892898,9.17392421,146.95,146.9,36.74952421]
[1745488893406,9.17392421,146.96,146.91,9.17392421]
[1745488893594,1.39066306,146.97,146.91,9.17392421]
[1745488893790,0.03,146.97,146.92,9.17392421]
[1745488894097,9.17392421,146.96,146.92,9.17392421]
[1745488895010,9.17392421,146.96,146.91,9.17392421]
[1745488895391,9.17392421,146.95,146.91,9.17392421]
[1745488896516,1.39066306,146.97,146.91,9.17392421]
[1745488896716,9.17392421,146.96,146.91,9.17392421]
[1745488896891,10.53458727,146.96,146.91,9.17392421]
[1745488897996,9.17392421,146.96,146.91,9.17392421]
[1745488899402,9.17392421,146.96,146.92,9.17392421]
[1745488903206,10.56458727,146.97,146.92,9.17392421]
[1745488904698,1.39066306,146.97,146.93,9.17392421]
[1745488905508,0.03,146.97,146.94,9.17392421]
[1745488905907,0.03,146.97,146.93,9.17392421]
[1745488906828,9.20392421,146.97,146.93,9.17392421]
[1745488907015,9.20392421,146.97,146.92,9.17392421]
[1745488907016,9.17392421,146.96,146.92,9.17392421]
[1745488907817,0.03,146.97,146.94,9.17392421]
[1745488910318,0.03,146.97,146.93,9.17392421]
[1745488912942,10.56458727,146.97,146.92,9.17392421]
[1745488913933,1.39066306,146.97,146.93,9.17392421]
[1745488915943,0.03,146.97,146.93,9.17392421]
[1745488919911,0.03,146.97,146.9,34.38277931]
[1745488919912,0.03,146.97,146.94,9.17392421]
[1745488921235,0.03,146.97,146.96,9.17392421]
[1745488924338,9.20392421,146.97,146.93,14.42]
[1745488924521,0.03,146.97,146.93,23.59392421]
[1745488924717,0.03,146.97,146.94,9.17392421]
[1745488927454,0.03,146.97,146.95,9.17392421]
[1745488927748,0.03,146.97,146.94,9.17392421]
[1745488929640,1.39066306,146.97,146.93,9.17392421]
[1745488929845,1.39066306,146.97,146.92,9.17392421]
[1745488929846,9.17392421,146.96,146.92,9.17392421]
[1745488930057,9.17392421,146.96,146.91,23.59392421]
[1745488930739,9.17392421,146.96,146.92,9.17392421]
[1745488934742,0.03,146.97,146.95,9.17392421]
[1745488934947,0.03,146.97,146.96,9.17392421]
[1745488935151,0.03,146.97,146.95,9.17392421]
[1745488939064,9.20392421,146.97,146.91,14.42]
[1745488939250,9.20392421,146.97,146.92,9.17392421]
[1745488939451,10.53458727,146.96,146.92,9.17392421]
[1745488940543,10.53458727,146.96,146.89,26.0]
[1745488940544,9.17392421,146.95,146.89,26.0]
[1745488940758,9.17392421,146.95,146.91,9.17392421]
[1745488941064,2.87616306,146.96,146.9,9.17392421]
[1745488941065,9.17392421,146.94,146.9,9.17392421]
[1745488943776,9.17392421,146.92,146.88,9.17392421]
[1745488943947,1.36066306,146.91,146.87,23.65692421]
[1745488944561,10.53458727,146.91,146.87,14.483]
[1745488945472,9.17392421,146.9,146.87,0.063]
[1745488946057,1.36066306,146.93,146.87,0.063]
[1745488946366,9.17392421,146.9,146.87,0.063]
[1745488946976,9.17392421,146.91,146.87,0.063]
[1745488947960,9.17392421,146.91,146.87,9.23692421]
[1745488948361,2.87616306,146.96,146.9,9.17392421]
[1745488948554,28.87616306,146.96,146.9,9.17392421]
[1745488948754,9.17392421,146.94,146.89,9.17392421]
[1745488948977,10.53458727,146.93,146.89,9.17392421]
[1745488951377,1.36066306,146.93,146.89,9.17392421]
[1745488951582,9.17392421,146.93,146.89,9.17392421]
[1745488951964,1.36066306,146.95,146.89,9.17392421]
[1745488952173,1.36066306,146.95,146.9,9.17392421]
[1745488952464,9.17392421,146.94,146.9,9.17392421]
[1745488952662,1.36066306,146.93,146.9,9.17392421]
[1745488952872,1.36066306,146.95,146.91,9.17392421]
[1745488953478,10.53458727,146.95,146.91,9.17392421]
[1745488953881,10.53458727,146.95,146.87,32.87137643]
[1745488953882,10.53458727,146.95,146.9,9.17392421]
[1745488955073,1.36066306,146.95,146.87,32.87137643]
[1745488955272,10.53458727,146.95,146.9,9.17392421]
[1745488956463,1.36066306,146.95,146.88,6.80791445]
[1745488956783,1.36066306,146.95,146.92,9.17392421]
[1745488958386,1.36066306,146.95,146.91,9.17392421]
[1745488958679,10.53458727,146.95,146.91,9.17392421]
[1745488959671,1.36066306,146.95,146.91,9.17392421]
[1745488959873,9.17392421,146.95,146.87,40.463]
[1745488960070,10.53458727,146.94,146.87,40.463]
[1745488960270,1.36066306,146.94,146.91,9.17392421]
[1745488960462,1.36066306,146.96,146.93,9.17392421]
[1745488960776,10.53458727,146.96,146.92,9.17392421]
[1745488961782,1.36066306,146.96,146.89,7.995]
[1745488961987,9.17392421,146.93,146.87,40.463]
[1745488962184,27.6065,146.95,146.88,9.17392421]
[1745488962374,9.17392421,146.92,146.88,9.17392421]
[1745488962575,10.53458727,146.91,146.87,23.63692421]
[1745488962779,9.17392421,146.9,146.87,0.063]
[1745488963681,9.17392421,146.89,146.87,0.063]
[1745488964192,9.17392421,146.9,146.87,0.063]
[1745488966189,1.36066306,146.92,146.87,9.23692421]
[1745488966388,9.17392421,146.91,146.87,9.23692421]
[1745488966577,1.6065,146.95,146.87,9.23692421]
[1745488966578,9.17392421,146.94,146.9,9.17392421]
[1745488966779,1.36066306,146.95,146.91,9.17392421]
[1745488967084,10.53458727,146.95,146.91,9.17392421]
[1745488967482,1.36066306,146.95,146.91,9.17392421]
[1745488967783,10.53458727,146.95,146.91,9.17392421]
[1745488968992,10.53458727,146.95,146.9,9.17392421]
[1745488969369,10.53458727,146.95,146.91,9.17392421]
[1745488971502,1.36066306,146.95,146.91,9.17392421]
[1745488972197,10.53458727,146.95,146.91,9.17392421]
[1745488980893,10.53458727,146.95,146.9,9.17392421]
[1745488982405,10.53458727,146.95,146.91,9.17392421]
[1745488985796,10.53458727,146.95,146.87,15.82459235]
[1745488985998,10.53458727,146.95,146.9,9.17392421]
[1745488986799,10.53458727,146.95,146.87,15.82459235]
[1745488986800,10.53458727,146.95,146.91,9.17392421]
[1745488990502,9.17392421,146.93,146.88,9.17392421]
[1745488990681,1.36066306,146.92,146.87,14.463]
[1745488991014,9.17392421,146.91,146.87,23.63692421]
[1745488991386,9.17392421,146.91,146.87,9.23692421]
[1745488991583,10.53458727,146.9,146.87,0.063]
[1745488991900,1.36066306,146.9,146.87,0.063]
[1745488992307,10.53458727,146.9,146.87,0.063]
[1745488993008,1.36066306,146.9,146.87,9.23692421]
[1745488995106,1.36066306,146.93,146.89,9.17392421]
[1745488995307,1.36066306,146.93,146.9,9.17392421]
[1745488996505,1.36066306,146.93,146.87,0.063]
[1745488996695,10.53458727,146.93,146.88,9.17392421]
[1745488997415,10.53458727,146.93,146.89,9.17392421]
[1745488998210,1.36066306,146.93,146.89,9.17392421]
[1745488998389,9.17392421,146.94,146.89,9.17392421]
[1745488998690,1.36066306,146.93,146.89,9.17392421]
[1745488999287,1.36066306,146.95,146.91,9.17392421]
[1745488999487,10.53458727,146.95,146.91,9.17392421]
[1745489000594,10.53458727,146.95,146.9,9.17392421]
[1745489001594,9.17392421,146.93,146.89,9.17392421]
[1745489003305,9.17392421,146.94,146.89,9.17392421]
[1745489003515,1.36066306,146.93,146.89,9.17392421]
[1745489005612,10.53458727,146.95,146.9,9.17392421]
[1745489007709,10.53458727,146.95,146.87,22.644]
[1745489007910,10.53458727,146.95,146.9,9.14378717]
[1745489008093,1.36066306,146.95,146.9,9.14378717]
[1745489008293,10.53458727,146.95,146.9,9.14378717]
[1745489010915,10.53458727,146.95,146.91,9.17392421]
[1745489012713,10.53458727,146.95,146.9,9.17392421]
[1745489013618,10.53458727,146.95,146.87,22.644]
[1745489013811,10.53458727,146.95,146.9,9.17392421]
[1745489014922,1.36066306,146.95,146.9,9.17392421]
[1745489015126,10.53458727,146.95,146.9,9.17392421]
[1745489016006,10.53458727,146.95,146.87,22.644]
[1745489016307,10.53458727,146.95,146.9,9.17392421]
[1745489017220,10.53458727,146.95,146.87,22.644]
[1745489017418,9.17392421,146.9,146.87,14.463]
[1745489017632,9.17392421,146.88,146.87,0.063]
[1745489021032,10.53458727,146.89,146.87,0.063]
[1745489021217,27.36066306,146.89,146.87,0.063]
[1745489021534,10.53458727,146.89,146.87,0.063]
[1745489022219,9.17392421,146.88,146.87,0.063]
[1745489023127,1.36066306,146.9,146.87,0.063]
[1745489023340,10.53458727,146.9,146.87,0.063]
[1745489023633,1.36066306,146.9,146.87,0.063]
[1745489023834,10.53458727,146.9,146.87,0.063]
[1745489024033,36.53458727,146.9,146.87,0.063]
[1745489024411,9.17392421,146.89,146.87,0.063]
[1745489025140,1.36066306,146.88,146.87,0.063]
[1745489025633,10.53458727,146.89,146.87,0.063]
[1745489026009,9.17392421,146.88,146.87,0.063]
[1745489027514,1.36066306,146.89,146.87,0.063]
[1745489027933,1.36066306,146.9,146.87,0.063]
[1745489028733,10.53458727,146.9,146.87,0.063]
[1745489029033,9.17392421,146.89,146.87,0.063]
[1745489029238,1.36066306,146.88,146.87,0.063]
[1745489030035,10.53458727,146.89,146.87,0.063]
[1745489033735,9.17392421,146.88,146.87,0.063]
[1745489034642,10.53458727,146.89,146.87,0.063]
[1745489039346,9.17392421,146.88,146.87,0.063]
[1745489048843,27.82357307,146.88,146.87,0.063]
[1745489049358,9.17392421,146.88,146.87,0.063]
[1745489055441,9.17392421,146.88,146.86,0.063]
[1745489055442,27.82357307,146.88,146.86,0.063]
[1745489055762,27.82357307,146.88,146.85,0.063]
[1745489055763,10.53458727,146.87,146.85,0.063]
[1745489055955,35.17392421,146.86,146.85,0.063]
[1745489065862,1.36066306,146.89,146.85,0.063]
[1745489066077,9.17392421,146.9,146.85,9.23692421]
[1745489066369,26.0,146.87,146.85,0.063]
[1745489066743,27.36066306,146.87,146.85,0.063]
[1745489067144,36.53458727,146.87,146.85,0.063]
[1745489067763,9.17392421,146.86,146.85,0.063]
[1745489068068,10.53458727,146.86,146.85,0.063]
[1745489068660,1.36066306,146.86,146.85,0.063]
[1745489071169,26.0,146.89,146.85,0.063]
[1745489071365,1.36066306,146.88,146.85,9.23692421]
[1745489072466,1.36066306,146.88,146.85,0.063]
[1745489074967,1.36066306,146.88,146.85,9.23692421]
[1745489075359,10.53458727,146.91,146.86,9.17392421]
[1745489075878,26.0,146.9,146.86,9.17392421]
[1745489076048,1.36066306,146.89,146.86,9.17392421]
[1745489076449,1.36066306,146.89,146.87,9.17392421]
[1745489076671,1.36066306,146.92,146.88,9.17392421]
[1745489076979,27.39066306,146.94,146.9,9.17392421]
[1745489078379,26.0,146.93,146.91,9.17392421]
[1745489078673,1.39066306,146.94,146.91,9.17392421]
[1745489083377,0.03,146.94,146.92,9.17392421]
[1745489085879,0.03,146.94,146.93,9.17392421]
[1745489087059,0.03,146.94,146.9,14.34]
[1745489087261,0.03,146.94,146.93,9.17392421]
[1745489087681,0.03,146.94,146.91,9.17392421]
[1745489087981,1.39066306,146.94,146.91,9.17392421]
[1745489088184,1.39066306,146.94,146.9,23.51392421]
[1745489089176,1.39066306,146.94,146.91,9.17392421]
[1745489092291,1.39066306,146.94,146.9,14.34]
[1745489092468,1.39066306,146.94,146.9,23.51392421]
[1745489092880,1.39066306,146.94,146.91,9.17392421]
[1745489093274,0.03,146.94,146.93,9.17392421]
[1745489093663,0.03,146.94,146.9,14.34]
[1745489093973,0.03,146.94,146.92,9.17392421]
[1745489099899,0.03,146.94,146.93,9.17392421]
[1745489107595,0.03,146.94,146.9,14.34]
[1745489107796,0.03,146.94,146.92,9.17392421]
[1745489108585,0.03,146.94,146.93,9.17392421]
[1745489117377,0.03,146.94,146.92,9.17392421]
[1745489117695,0.03,146.94,146.91,9.17392421]
[1745489118388,0.03,146.94,146.9,14.34]
[1745489118582,0.03,146.94,146.91,9.17392421]
[1745489120797,9.20392421,146.94,146.9,14.34]
[1745489121006,1.36066306,146.93,146.9,14.34]
[1745489121499,1.36066306,146.93,146.9,23.51392421]
[1745489121703,1.39066306,146.94,146.92,9.17392421]
[1745489121884,0.03,146.94,146.93,9.17392421]
[1745489122484,0.03,146.94,146.9,14.34]
[1745489122788,0.03,146.94,146.92,9.17392421]
[1745489123401,0.03,146.94,146.9,14.34]
[1745489123597,0.03,146.94,146.9,23.51392421]
[1745489123806,9.20392421,146.94,146.9,14.34]
[1745489123998,1.36066306,146.93,146.9,14.34]
[1745489124499,9.17392421,146.92,146.87,9.17392421]
[1745489124684,1.36066306,146.91,146.88,9.17392421]
[1745489125605,9.17392421,146.89,146.86,14.32]
[1745489125779,1.36066306,146.88,146.85,0.063]
[1745489126495,9.17392421,146.89,146.85,0.063]
[1745489127582,35.17392421,146.9,146.85,9.23692421]
[1745489127788,1.36066306,146.89,146.85,9.23692421]
[1745489129503,1.36066306,146.89,146.85,0.063]
[1745489129709,1.36066306,146.89,146.88,9.17392421]
[1745489130002,2.92056306,146.94,146.88,23.51392421]
[1745489130211,26.0,146.93,146.91,9.17392421]
[1745489130412,2.92056306,146.94,146.91,9.17392421]
[1745489130722,9.17392421,146.93,146.88,14.34]
[1745489130895,1.36066306,146.92,146.88,14.34]
[1745489131102,1.36066306,146.92,146.9,9.17392421]
[1745489131301,1.36066306,146.93,146.9,9.17392421]
[1745489132101,1.36066306,146.93,146.89,9.17392421]
[1745489132613,1.36066306,146.93,146.9,9.17392421]
[1745489133589,27.39066306,146.94,146.9,9.17392421]
[1745489134093,0.03,146.94,146.92,9.17392421]
[1745489134403,0.03,146.94,146.91,9.17392421]
[1745489139604,0.03,146.94,146.9,9.17392421]
[1745489146236,9.17392421,146.93,146.88,14.34]
[1745489146418,10.53458727,146.92,146.88,23.51392421]
[1745489146716,9.17392421,146.9,146.85,0.063]
[1745489147027,1.36066306,146.89,146.85,9.23692421]
[1745489147234,10.53458727,146.89,146.85,0.063]
[1745489153313,9.17392421,146.88,146.85,0.063]
[1745489153507,1.36066306,146.87,146.85,0.063]
[1745489160338,10.53458727,146.87,146.85,0.063]
[1745489162228,9.17392421,146.86,146.85,0.063]
[1745489162825,10.53458727,146.88,146.85,0.063]
[1745489163028,9.17392421,146.87,146.85,0.063]
[1745489163228,1.36066306,146.86,146.85,0.063]
[1745489164143,10.53458727,146.86,146.85,0.063]
[1745489166226,1.36066306,146.86,146.85,0.063]
[1745489167226,1.36066306,146.91,146.85,23.55692421]
[1745489167550,9.17392421,146.93,146.88,9.17392421]
[1745489167745,1.36066306,146.92,146.9,9.17392421]
[1745489167914,0.03,146.94,146.91,9.17392421]
[1745489167915,1.39066306,146.94,146.91,9.17392421]
[1745489168120,0.03,146.94,146.92,9.17392421]
[1745489168929,0.03,146.94,146.91,9.17392421]
[1745489171042,1.39066306,146.94,146.91,9.17392421]
[1745489172949,1.39066306,146.94,146.85,14.383]
[1745489172950,10.56458727,146.94,146.85,14.383]
[1745489173138,9.17392421,146.93,146.89,9.17392421]
[1745489173338,1.36066306,146.92,146.89,9.17392421]
[1745489174843,1.36066306,146.92,146.88,9.17392421]
[1745489176042,1.36066306,146.92,146.89,9.17392421]
[1745489176243,1.36066306,146.93,146.85,14.383]
[1745489176443,1.36066306,146.93,146.89,9.17392421]
[1745489177147,9.17392421,146.9,146.85,14.383]
[1745489177351,1.36066306,146.89,146.86,9.17392421]
[1745489177650,1.36066306,146.89,146.87,9.17392421]
[1745489178356,1.36066306,146.9,146.87,9.17392421]
[1745489179239,1.36066306,146.9,146.88,9.17392421]
[1745489179450,1.36066306,146.92,146.89,9.17392421]
[1745489179756,1.36066306,146.92,146.9,9.17392421]
[1745489180052,1.36066306,146.92,146.89,9.17392421]
[1745489181241,1.36066306,146.92,146.9,9.17392421]
[1745489181440,1.39066306,146.94,146.9,9.17392421]
[1745489186346,1.39066306,146.94,146.91,9.17392421]
[1745489187342,1.39066306,146.94,146.9,9.17392421]
[1745489190639,10.56458727,146.94,146.9,9.17392421]
[1745489195843,10.56458727,146.94,146.89,9.17392421]
[1745489201466,10.56458727,146.94,146.87,14.3]
[1745489201662,10.56458727,146.94,146.89,9.17392421]
[1745489202172,1.39066306,146.94,146.89,9.17392421]
[1745489202573,10.56458727,146.94,146.89,9.17392421]
[1745489208152,1.39066306,146.94,146.9,9.17392421]
[1745489208851,1.39066306,146.94,146.91,9.17392421]
[1745489211380,1.39066306,146.94,146.9,9.17392421]
[1745489211578,10.56458727,146.94,146.9,9.17392421]
[1745489211781,9.17392421,146.93,146.88,1.5909]
[1745489212087,1.36066306,146.92,146.88,9.17392421]
[1745489212276,1.36066306,146.92,146.87,14.3]
[1745489212580,1.36066306,146.92,146.88,9.17392421]
[1745489212785,10.53458727,146.92,146.88,9.17392421]
[1745489213081,9.17392421,146.9,146.87,14.3]
[1745489213276,1.36066306,146.89,146.87,14.3]
[1745489215270,1.36066306,146.89,146.85,9.23692421]
[1745489215666,9.17392421,146.88,146.85,0.063]
[1745489215874,9.17392421,146.86,146.85,0.063]
[1745489222383,27.82357307,146.86,146.85,0.063]
[1745489222592,91.87993297,146.86,146.85,0.063]
[1745489222969,93.41823297,146.86,146.85,0.063]
[1745489223464,67.41823297,146.86,146.85,0.063]
[1745489224573,67.41823297,146.86,146.84,0.063]
[1745489224774,35.17392421,146.85,146.84,0.063]
[1745489225289,35.17392421,146.85,146.81,0.063]
[1745489225290,18.64964886,146.82,146.81,0.063]
[1745489225503,3.2316,146.77,146.76,0.063]
[1745489225999,4.59226306,146.77,146.76,0.063]
[1745489226172,3.2316,146.77,146.76,0.063]
[1745489226372,4.59226306,146.77,146.76,0.063]
[1745489228902,3.2316,146.77,146.76,0.063]
[1745489229875,3.2316,146.77,146.76,9.23692421]
[1745489231500,10.53458727,146.82,146.76,9.23692421]
[1745489231673,10.53458727,146.82,146.77,9.17392421]
[1745489231873,10.53458727,146.82,146.77,5.94232421]
[1745489232598,9.17392421,146.81,146.77,9.17392421]
[1745489232792,1.36066306,146.82,146.77,9.17392421]
[1745489232982,9.17392421,146.81,146.77,9.17392421]
[1745489234384,10.53458727,146.82,146.77,9.17392421]
[1745489235035,27.36066306,146.85,146.8,9.17392421]
[1745489235213,36.53458727,146.85,146.81,9.17392421]
[1745489235507,36.53458727,146.85,146.8,9.17392421]
[1745489236706,9.17392421,146.84,146.8,9.17392421]
[1745489237615,1.36066306,146.83,146.8,9.17392421]
[1745489237788,1.36066306,146.83,146.79,9.17392421]
[1745489239081,10.53458727,146.83,146.79,9.17392421]
[1745489241406,10.53458727,146.83,146.78,10.81082421]
[1745489241809,10.53458727,146.83,146.79,9.17392421]
[1745489242715,1.36066306,146.83,146.79,9.17392421]
[1745489243008,9.17392421,146.83,146.79,9.17392421]
[1745489243579,1.36066306,146.84,146.8,9.17392421]
[1745489243784,10.53458727,146.84,146.8,9.17392421]
[1745489244304,1.36066306,146.84,146.8,9.17392421]
[1745489244521,9.17392421,146.84,146.8,9.17392421]
[1745489245033,26.0,146.86,146.83,9.17392421]
[1745489245199,10.53458727,146.87,146.83,9.17392421]
[1745489245518,36.53458727,146.87,146.82,9.17392421]
[1745489246008,36.53458727,146.87,146.78,9.81192813]
[1745489246212,36.53458727,146.87,146.82,9.17392421]
[1745489246598,9.17392421,146.85,146.81,9.17392421]
[1745489246798,9.17392421,146.86,146.81,9.17392421]
[1745489247000,1.36066306,146.85,146.81,9.17392421]
[1745489248318,1.36066306,146.85,146.82,9.17392421]
[1745489248493,1.36066306,146.9,146.84,9.17392421]
[1745489248691,1.36066306,146.9,146.85,9.17392421]
[1745489248911,9.17392421,146.89,146.85,9.17392421]
[1745489249103,1.36066306,146.88,146.85,9.17392421]
[1745489249416,10.53458727,146.88,146.83,9.17392421]
[1745489252117,1.36066306,146.88,146.85,9.17392421]
[1745489252319,1.36066306,146.89,146.85,9.17392421]
[1745489252821,10.53458727,146.89,146.85,9.17392421]
[1745489253113,10.53458727,146.89,146.84,9.17392421]
[1745489253811,9.17392421,146.88,146.84,9.17392421]
[1745489254614,10.53458727,146.89,146.84,9.17392421]
[1745489255303,9.17392421,146.88,146.83,9.17392421]
[1745489255513,1.36066306,146.87,146.83,9.17392421]
[1745489259097,1.36066306,146.87,146.82,20.6593]
[1745489259098,1.36066306,146.87,146.84,9.17392421]
[1745489260637,1.36066306,146.87,146.82,23.47392421]
[1745489260638,10.53458727,146.87,146.82,23.47392421]
[1745489261206,9.17392421,146.86,146.82,14.3]
[1745489261526,9.17392421,146.84,146.79,9.17392421]
[1745489261713,10.53458727,146.85,146.8,9.17392421]
[1745489262105,1.36066306,146.85,146.81,9.17392421]
[1745489262308,1.36066306,146.85,146.82,9.17392421]
[1745489262731,1.36066306,146.86,146.82,9.17392421]
[1745489263202,1.36066306,146.87,146.84,9.17392421]
[1745489267236,1.36066306,146.87,146.83,9.17392421]
[1745489270941,10.53458727,146.87,146.83,9.17392421]
[1745489271123,10.53458727,146.87,146.82,9.17392421]
[1745489273250,1.36066306,146.87,146.83,9.17392421]
[1745489275634,1.36066306,146.88,146.84,9.17392421]
[1745489276440,1.36066306,146.88,146.85,9.17392421]
[1745489276740,26.0,146.88,146.85,9.17392421]
[1745489280242,27.36066306,146.88,146.84,9.17392421]
[1745489283443,27.36066306,146.88,146.85,9.17392421]
[1745489283942,0.063,146.91,146.87,9.17392421]
[1745489283943,1.42366306,146.91,146.87,9.17392421]
[1745489284147,0.063,146.91,146.9,9.17392421]
[1745489284321,0.063,146.91,146.88,9.17392421]
[1745489284821,9.23692421,146.91,146.87,9.17392421]
[1745489285451,10.53458727,146.9,146.85,9.17392421]
[1745489285946,10.53458727,146.9,146.86,9.17392421]
[1745489286442,10.53458727,146.9,146.85,9.17392421]
[1745489286640,9.17392421,146.89,146.85,9.17392421]
[1745489287750,36.53458727,146.9,146.85,9.17392421]
[1745489287940,36.53458727,146.9,146.8,20.01122575]
[1745489287941,9.17392421,146.86,146.8,46.4704]
[1745489288136,1.36066306,146.85,146.81,9.17392421]
[1745489288947,10.53458727,146.85,146.81,9.17392421]
[1745489289246,9.17392421,146.87,146.82,9.17392421]
[1745489289443,1.36066306,146.86,146.82,9.17392421]
[1745489292047,1.36066306,146.86,146.83,9.17392421]
[1745489292232,10.53458727,146.89,146.84,9.17392421]
[1745489292751,35.17392421,146.88,146.84,9.17392421]
[1745489292936,1.36066306,146.87,146.84,9.17392421]
[1745489294266,26.0,146.88,146.84,9.17392421]
[1745489294556,27.36066306,146.88,146.84,9.17392421]
[1745489294857,1.36066306,146.88,146.84,9.17392421]
[1745489295070,9.17392421,146.89,146.84,9.17392421]
[1745489295362,1.36066306,146.88,146.84,9.17392421]
[1745489295648,27.36066306,146.88,146.78,27.6255]
[1745489295859,9.17392421,146.83,146.78,36.79942421]
[1745489296064,9.17392421,146.85,146.8,9.17392421]
[1745489296353,10.53458727,146.86,146.82,9.17392421]
[1745489296534,10.53458727,146.86,146.81,9.17392421]
[1745489297561,10.53458727,146.86,146.78,27.6255]
[1745489297738,9.17392421,146.85,146.8,9.17392421]
[1745489298443,10.53458727,146.84,146.79,9.17392421]
[1745489298644,9.17392421,146.82,146.76,14.323]
[1745489298858,9.17392421,146.82,146.77,9.17392421]
[1745489299368,1.36066306,146.81,146.77,9.17392421]
[1745489300163,10.53458727,146.81,146.77,9.17392421]
[1745489300375,1.36066306,146.81,146.77,9.17392421]
[1745489302369,10.53458727,146.81,146.76,14.323]
[1745489302584,10.53458727,146.81,146.76,23.49692421]
[1745489303264,9.17392421,146.8,146.76,23.49692421]
[1745489303446,26.0,146.83,146.76,0.063]
[1745489303447,9.17392421,146.79,146.76,0.063]
[1745489303647,10.53458727,146.78,146.76,0.063]
[1745489305145,9.17392421,146.77,146.76,0.063]
[1745489311970,9.17392421,146.78,146.76,0.063]
[1745489312172,1.36066306,146.77,146.76,0.063]
[1745489316555,10.53458727,146.77,146.76,0.063]
[1745489321786,10.53458727,146.79,146.76,0.063]
[1745489322281,9.17392421,146.78,146.76,0.063]
[1745489322467,1.36066306,146.77,146.76,0.063]
[1745489322663,10.53458727,146.77,146.76,0.063]
[1745489325106,10.53458727,146.77,146.71,0.063]
[1745489325107,3.3544,146.72,146.71,0.063]
[1745489325281,12.52832421,146.72,146.71,0.063]